bitfinex-derivatives/quotes_ETHF0:USTF0_20260305
["timestamp","ask_amount","ask_price","bid_price","bid_amount"]
[1772703522950,0.55457858,2129.5,2128.7,0.59513798]
[1772703523852,0.55457858,2129.5,2128.7,0.00589008]
[1772703524055,0.55457858,2129.3,2128.7,0.00589008]
[1772703524352,0.55457858,2129.1,2128.7,0.59513798]
[1772703524553,6.70357858,2129.1,2128.7,0.59513798]
[1772703524756,6.70357858,2129.1,2128.2,0.5892479]
[1772703525349,0.55457858,2129.0,2128.2,0.5892479]
[1772703525753,0.55457858,2129.0,2128.2,0.59492856]
[1772703526156,0.55457858,2129.0,2128.2,0.00568066]
[1772703527257,6.70457858,2129.1,2128.2,0.59492856]
[1772703527456,6.70457858,2129.1,2128.2,0.00568066]
[1772703527457,0.55457858,2129.0,2128.2,0.00568066]
[1772703527655,0.55457858,2129.0,2127.8,0.5892479]
[1772703527858,0.55457858,2129.0,2127.4,0.5892479]
[1772703528059,0.55457858,2128.8,2127.4,0.5892479]
[1772703528255,0.55457858,2128.6,2127.4,0.5892479]
[1772703528455,0.55457858,2128.4,2127.4,0.5892479]
[1772703528650,0.55457858,2128.4,2127.4,0.59518262]
[1772703528651,0.55794782,2128.4,2127.4,0.59518262]
[1772703528850,0.55794782,2128.4,2127.4,0.00593472]
[1772703529054,0.57832872,2128.2,2127.4,0.6022299]
[1772703529260,0.57832872,2128.2,2127.4,0.00593472]
[1772703530262,0.57832872,2128.0,2127.4,0.00593472]
[1772703530464,6.15,2127.9,2127.4,0.6022299]
[1772703530953,6.72832872,2127.9,2127.4,0.6022299]
[1772703531155,6.72832872,2127.9,2127.4,0.00593472]
[1772703531156,0.57832872,2127.8,2127.4,0.00593472]
[1772703531660,0.57832872,2127.8,2126.8,0.83132518]
[1772703531857,0.57832872,2127.8,2126.4,0.59629518]
[1772703532356,0.57832872,2127.8,2126.5,0.59629518]
[1772703532755,0.57832872,2127.6,2126.5,0.60028332]
[1772703532964,0.57832872,2127.4,2126.5,0.60028332]
[1772703533857,0.57832872,2127.4,2126.5,0.00398814]
[1772703534053,6.151,2127.3,2126.5,0.00398814]
[1772703534254,6.151,2127.3,2126.5,0.60028332]
[1772703534255,6.30765744,2127.3,2126.5,0.60028332]
[1772703534459,0.57832872,2127.2,2126.5,0.60028332]
[1772703534865,6.152,2127.5,2126.5,0.60028332]
[1772703535159,0.57832872,2127.5,2126.5,0.60028332]
[1772703535359,0.57832872,2127.5,2126.5,0.00398814]
[1772703536360,6.152,2127.6,2126.6,0.59629518]
[1772703536565,0.57832872,2127.5,2126.6,0.59629518]
[1772703537568,0.57832872,2127.4,2126.6,0.59629518]
[1772703538766,0.57832872,2128.1,2126.8,0.59629518]
[1772703538970,0.57832872,2127.8,2126.6,0.59629518]
[1772703540062,0.57832872,2127.6,2126.6,0.59629518]
[1772703540263,0.57832872,2127.4,2126.6,0.59629518]
[1772703540565,0.57832872,2127.7,2126.8,0.59629518]
[1772703541256,0.57832872,2128.2,2127.0,0.59629518]
[1772703541460,0.57832872,2128.2,2127.2,0.59629518]
[1772703542266,0.57832872,2128.0,2126.7,0.59629518]
[1772703542570,0.57832872,2127.9,2126.7,0.59629518]
[1772703542770,0.57832872,2127.7,2126.7,0.59629518]
[1772703542971,0.57832872,2127.7,2126.5,0.60028332]
[1772703543568,0.57832872,2127.5,2126.2,0.59629518]
[1772703543770,0.57832872,2127.3,2125.7,0.59629518]
[1772703543966,0.57832872,2127.1,2125.7,0.59629518]
[1772703544670,0.57832872,2127.1,2125.9,0.59629518]
[1772703544873,0.57832872,2126.9,2125.9,0.59629518]
[1772703545073,0.58387956,2126.9,2125.9,0.59629518]
[1772703545468,0.58387956,2126.9,2125.7,0.60178026]
[1772703546471,0.58387956,2126.9,2125.8,0.59629518]
[1772703546472,0.57832872,2126.8,2125.8,0.59629518]
[1772703546668,0.00555084,2126.9,2126.0,0.59629518]
[1772703546971,0.58387956,2126.9,2126.2,0.59629518]
[1772703547173,0.58387956,2126.9,2125.7,0.00548508]
[1772703547174,0.58387956,2126.9,2126.0,0.59629518]
[1772703548368,0.57832872,2126.7,2125.8,0.59629518]
[1772703549582,0.57832872,2126.7,2125.7,0.60178026]
[1772703550077,0.57832872,2126.7,2125.7,0.00548508]
[1772703550472,0.57832872,2126.7,2125.7,0.60178026]
[1772703551078,0.57832872,2126.7,2125.5,0.23517]
[1772703551079,2.6279467,2126.6,2125.3,0.59629518]
[1772703551275,0.57832872,2126.5,2125.3,0.59629518]
[1772703551575,0.57832872,2126.2,2124.5,0.59629518]
[1772703551778,2.6279467,2126.3,2124.5,0.59629518]
[1772703551779,0.57832872,2125.9,2124.5,0.59629518]
[1772703551980,3.87312135,2126.5,2124.9,0.59629518]
[1772703551981,0.57832872,2126.5,2124.9,0.59629518]
[1772703552181,0.57832872,2126.3,2124.9,0.59629518]
[1772703552377,0.57832872,2126.3,2124.9,0.60127808]
[1772703552773,0.57832872,2126.2,2124.9,0.60127808]
[1772703553281,0.57832872,2126.0,2124.9,0.60127808]
[1772703553582,0.57832872,2125.8,2124.9,0.60127808]
[1772703554281,6.72932872,2126.2,2125.1,0.59629518]
[1772703554472,0.57832872,2126.1,2125.1,0.59629518]
[1772703559881,0.54579624,2126.3,2125.5,0.56353247]
[1772703560080,0.54579624,2126.4,2125.5,0.56353247]
[1772703564878,0.54579624,2126.7,2125.5,0.56353247]
[1772703566881,0.54579624,2126.7,2125.7,0.56353247]
[1772703567083,0.55134708,2126.9,2125.8,0.56353247]
[1772703567280,0.55134708,2126.9,2125.9,0.56054569]
[1772703567884,0.55134708,2126.9,2126.1,0.56054569]
[1772703568084,0.00555084,2126.9,2126.3,0.56054569]
[1772703568388,0.54156111,2127.1,2126.3,0.56054569]
[1772703568886,0.54156111,2127.1,2126.1,0.56054569]
[1772703569388,0.54624592,2127.1,2126.1,0.56054569]
[1772703571288,0.54156111,2126.9,2126.1,0.56054569]
[1772703571485,0.00468481,2127.1,2126.1,0.56054569]
[1772703571486,0.54156111,2127.0,2126.1,0.56054569]
[1772703573995,6.69156111,2127.0,2126.1,0.56054569]
[1772703574197,0.54156111,2126.9,2126.1,0.56054569]
[1772703578489,0.54156111,2126.9,2125.8,0.56054569]
[1772703578689,0.54156111,2126.8,2125.8,0.56054569]
[1772703578896,0.54156111,2126.8,2125.6,0.56054569]
[1772703579991,0.54156111,2126.4,2125.3,0.56054569]
[1772703580189,0.54156111,2126.2,2125.3,0.56054569]
[1772703580790,5.7495141,2126.5,2125.3,0.56054569]
[1772703580791,6.69156111,2126.1,2125.3,0.56054569]
[1772703580985,0.54156111,2126.0,2125.3,0.56054569]
[1772703582496,3.87312135,2126.3,2125.3,0.56054569]
[1772703582696,6.15,2126.3,2125.3,0.56054569]
[1772703582994,0.54156111,2126.4,2125.3,0.56054569]
[1772703583189,6.15,2126.3,2125.3,0.56054569]
[1772703583596,0.54156111,2126.3,2125.3,0.56054569]
[1772703583796,6.69256111,2126.3,2125.3,0.56054569]
[1772703584489,4.41468246,2126.6,2125.5,0.56054569]
[1772703584697,0.54156111,2127.0,2125.9,0.56054569]
[1772703584897,0.54156111,2127.0,2126.0,0.56054569]
[1772703585293,2.6279467,2127.0,2125.8,0.56054569]
[1772703585494,0.54156111,2126.9,2125.8,0.56054569]
[1772703586395,6.151,2126.8,2125.8,0.56054569]
[1772703586600,0.54156111,2126.7,2125.8,0.56054569]
[1772703587498,5.75419891,2127.1,2125.8,0.56054569]
[1772703587499,6.69256111,2126.6,2125.8,0.56054569]
[1772703588095,0.54156111,2126.5,2125.8,0.56054569]
[1772703591798,0.54156111,2126.5,2125.5,0.57235546]
[1772703595601,0.58032017,2126.3,2125.5,0.57235546]
[1772703596804,0.58032017,2126.3,2125.3,0.57235546]
[1772703597000,0.58032017,2126.3,2125.0,4.46501079]
[1772703597304,0.58032017,2126.3,2125.0,0.57235546]
[1772703601199,0.58032017,2126.3,2125.2,0.57235546]
[1772703601403,0.58032017,2126.3,2124.9,2.6329296]
[1772703601404,0.58032017,2126.1,2125.4,0.57235546]
[1772703603699,0.58032017,2126.5,2125.4,0.57235546]
[1772703604003,6.73232017,2126.4,2125.4,0.57235546]
[1772703604199,0.58032017,2126.3,2125.4,0.57235546]
[1772703605001,0.58032017,2126.3,2125.5,0.57235546]
[1772703605002,6.73232017,2126.3,2125.5,0.57235546]
[1772703605602,0.58032017,2126.8,2125.9,0.57235546]
[1772703606007,0.58032017,2126.8,2126.1,0.57235546]
[1772703606306,0.58032017,2126.9,2126.1,0.57235546]
[1772703606501,0.58500498,2127.1,2126.2,0.2351]
[1772703606706,0.58500498,2127.1,2126.3,0.57235546]
[1772703608505,0.00468481,2127.1,2126.3,0.57235546]
[1772703608908,0.58032017,2127.2,2126.5,0.57235546]
[1772703609109,0.58032017,2127.5,2126.5,0.57235546]
[1772703609807,0.58032017,2127.5,2126.7,0.57235546]
[1772703610010,0.58032017,2127.5,2126.7,0.57600372]
[1772703610011,0.5842265,2127.5,2126.7,0.57600372]
[1772703611009,0.5842265,2127.5,2126.7,0.00364826]
[1772703612103,0.5842265,2127.5,2126.7,0.57600372]
[1772703612709,6.7352265,2127.5,2126.7,0.57600372]
[1772703612907,0.5842265,2127.5,2126.7,0.57600372]
[1772703614614,0.5842265,2127.5,2126.7,0.00364826]
[1772703614911,0.58032017,2127.3,2126.7,0.57600372]
[1772703615215,6.73132017,2127.4,2126.7,0.57600372]
[1772703615413,0.58032017,2127.4,2126.7,0.57600372]
[1772703615911,0.00390633,2127.5,2126.7,0.57600372]
[1772703616303,0.5842265,2127.5,2126.7,0.57600372]
[1772703619309,0.00390633,2127.5,2126.8,0.83317646]
[1772703619613,0.55743905,2127.7,2127.0,0.59672363]
[1772703620604,0.56350634,2127.7,2126.8,0.59672363]
[1772703621811,0.56350634,2127.7,2126.7,0.00364826]
[1772703622114,0.55743905,2127.6,2126.7,0.00364826]
[1772703622314,0.55743905,2127.6,2126.7,0.60037189]
[1772703622505,0.55743905,2127.4,2126.7,0.60037189]
[1772703624010,0.55743905,2127.4,2126.7,0.00364826]
[1772703625420,0.55743905,2127.4,2126.7,0.60037189]
[1772703626318,0.55743905,2127.4,2126.7,0.00364826]
[1772703626822,0.55743905,2127.4,2126.7,0.60037189]
[1772703629919,0.55743905,2127.4,2126.7,0.00364826]
[1772703630319,0.55743905,2127.4,2126.7,0.57720692]
[1772703630917,0.00606729,2127.7,2126.7,0.57720692]
[1772703630918,0.57026487,2127.6,2126.7,0.57720692]
[1772703631420,0.57026487,2127.6,2126.9,0.57355866]
[1772703632216,0.57026487,2127.6,2126.8,0.23645283]
[1772703633222,0.57026487,2127.4,2126.7,0.00364826]
[1772703633419,0.57026487,2127.4,2126.2,0.57355866]
[1772703633619,0.57026487,2127.1,2126.0,0.57355866]
[1772703633819,0.57026487,2127.1,2125.8,3.88787689]
[1772703633820,0.57026487,2126.9,2125.8,0.57355866]
[1772703634422,0.57026487,2126.9,2125.8,0.57961568]
[1772703635024,0.57026487,2126.9,2125.8,0.00605702]
[1772703636724,6.31977897,2126.9,2125.8,0.00605702]
[1772703637028,0.57026487,2126.8,2125.8,0.00605702]
[1772703638528,0.57026487,2126.6,2125.8,0.57961568]
[1772703639234,0.57026487,2126.6,2125.8,0.00605702]
[1772703639434,0.57026487,2126.6,2125.8,0.57961568]
[1772703639636,5.7495141,2127.1,2125.8,0.57961568]
[1772703639637,0.57026487,2126.4,2125.8,0.57961568]
[1772703640935,0.57026487,2126.4,2125.8,0.00605702]
[1772703641334,0.57026487,2126.7,2125.8,0.57961568]
[1772703641633,0.57026487,2127.0,2126.2,0.57355866]
[1772703641830,5.7495141,2127.3,2126.4,0.57355866]
[1772703641831,0.57026487,2127.2,2126.4,0.57355866]
[1772703642329,0.57026487,2127.2,2125.9,0.57355866]
[1772703642937,0.57026487,2127.1,2125.9,0.57355866]
[1772703643435,0.57026487,2126.9,2125.9,0.57355866]
[1772703645430,0.57026487,2126.9,2125.8,0.57961568]
[1772703646034,0.57026487,2126.7,2125.8,0.57961568]
[1772703648337,0.57026487,2126.6,2125.8,0.57961568]
[1772703648833,0.57026487,2126.6,2125.8,0.00605702]
[1772703649230,0.57026487,2126.6,2125.8,0.58141225]
[1772703653541,0.57026487,2126.6,2125.8,0.00605702]
[1772703655239,0.58385893,2126.5,2125.8,0.58141225]
[1772703655940,0.58385893,2126.5,2125.8,0.00605702]
[1772703657845,0.58385893,2126.4,2125.8,0.00605702]
[1772703658345,0.58385893,2126.4,2125.8,0.58141225]
[1772703660046,0.58385893,2126.4,2125.8,0.00605702]
[1772703661238,0.58385893,2126.3,2125.8,0.58141225]
[1772703662544,0.58385893,2126.3,2125.8,0.00605702]
[1772703662744,0.58385893,2126.3,2125.5,0.81180806]
[1772703663148,0.58385893,2126.3,2125.5,0.23645283]
[1772703663647,0.58385893,2126.3,2125.5,0.24031214]
[1772703664047,0.58385893,2126.4,2125.7,0.57535523]
[1772703664249,0.58385893,2126.3,2125.7,0.57535523]
[1772703664548,0.58385893,2126.3,2125.5,0.57921454]
[1772703664738,0.58385893,2126.3,2125.5,0.00385931]
[1772703665844,0.58385893,2126.3,2125.5,0.23902931]
[1772703666049,0.58385893,2126.3,2125.5,0.00385931]
[1772703666351,0.58385893,2126.3,2125.5,0.57921454]
[1772703666650,6.73785893,2126.4,2125.5,0.57921454]
[1772703667247,6.73785893,2126.4,2125.6,0.57535523]
[1772703667449,6.73785893,2126.6,2125.8,0.57535523]
[1772703668246,0.58385893,2126.5,2125.8,0.57535523]
[1772703674452,0.58385893,2126.5,2125.7,0.23645283]
[1772703674653,0.58385893,2126.4,2125.5,0.57921454]
[1772703676259,0.58385893,2126.2,2125.5,0.57921454]
[1772703676452,0.58906667,2126.2,2125.5,0.00385931]
[1772703678152,0.58385893,2126.0,2125.5,0.57921454]
[1772703679754,0.58385893,2126.0,2125.5,0.00385931]
[1772703680060,0.58385893,2126.0,2125.5,0.55355766]
[1772703680453,0.00520774,2126.2,2125.5,0.55355766]
[1772703680864,0.59513519,2126.2,2125.5,0.00385931]
[1772703681164,0.58992745,2126.0,2125.5,0.00385931]
[1772703681952,0.58992745,2126.0,2125.3,0.54969835]
[1772703682361,6.74392745,2125.9,2125.3,0.54969835]
[1772703682563,0.58992745,2125.8,2125.3,0.54969835]
[1772703682764,0.58992745,2126.1,2125.3,0.54969835]
[1772703682963,0.58992745,2126.1,2125.3,0.00393408]
[1772703683864,6.74392745,2126.1,2125.3,0.55363243]
[1772703684160,0.58992745,2126.1,2125.4,0.54969835]
[1772703687361,0.00520774,2126.2,2125.4,0.54969835]
[1772703687657,0.58597737,2126.2,2125.4,0.54969835]
[1772703688864,0.58597737,2126.2,2125.5,0.57134963]
[1772703689568,6.73997737,2126.2,2125.5,0.57134963]
[1772703689863,0.58597737,2126.2,2125.5,0.57134963]
[1772703692057,0.00520774,2126.2,2125.6,0.57134963]
[1772703692859,0.58597737,2126.2,2125.6,0.57134963]
[1772703694167,0.58076963,2126.4,2125.7,0.57134963]
[1772703695260,0.58406486,2126.4,2125.7,0.57134963]
[1772703697468,0.58406486,2126.4,2125.6,0.57134963]
[1772703698168,6.73806486,2126.4,2125.6,0.57134963]
[1772703698362,0.58076963,2126.3,2125.6,0.57134963]
[1772703700767,0.00329523,2126.4,2125.8,0.57134963]
[1772703700968,0.58406486,2126.4,2125.8,0.57134963]
[1772703702178,0.58406486,2126.4,2125.6,0.57134963]
[1772703703370,0.58406486,2126.4,2125.6,0.80780246]
[1772703703564,0.58406486,2126.4,2125.7,0.57134963]
[1772703706367,0.58406486,2126.4,2125.8,0.57134963]
[1772703707065,0.58076963,2126.7,2126.0,0.57134963]
[1772703707670,0.58076963,2126.7,2125.9,0.47158283]
[1772703707671,0.58076963,2126.7,2125.9,0.23645283]
[1772703707866,0.58076963,2126.7,2125.7,5.83788471]
[1772703707867,0.58076963,2126.7,2125.7,0.57134963]
[1772703708171,0.58489842,2126.7,2125.7,0.57134963]
[1772703708467,0.58076963,2126.6,2125.7,0.57134963]
[1772703708673,0.58076963,2126.4,2125.7,0.57134963]
[1772703712477,6.73476963,2126.4,2125.7,0.57134963]
[1772703712676,6.70863751,2126.4,2125.9,0.57506476]
[1772703712976,0.55463751,2126.3,2125.9,0.57506476]
[1772703713475,0.55463751,2126.4,2125.9,0.57506476]
[1772703713674,6.70863751,2126.6,2125.9,0.57506476]
[1772703713875,0.55463751,2126.5,2125.9,0.57506476]
[1772703716076,0.55463751,2126.5,2125.6,5.47718358]
[1772703716077,0.55463751,2126.5,2125.7,0.57506476]
[1772703716576,0.55463751,2126.4,2125.7,0.57506476]
[1772703718480,0.55463751,2126.4,2125.8,0.57506476]
[1772703719674,0.55463751,2126.4,2125.7,0.23645283]
[1772703720377,0.55463751,2126.4,2125.7,0.81151759]
[1772703720577,0.55463751,2126.4,2125.8,0.57506476]
[1772703721178,0.55463751,2126.4,2125.7,0.23645283]
[1772703721379,0.55463751,2126.4,2125.7,0.57506476]
[1772703722283,6.155,2126.3,2125.8,0.57506476]
[1772703722479,0.5587663,2126.7,2126.3,0.57506476]
[1772703722680,0.5587663,2126.7,2126.1,0.57506476]
[1772703722884,0.5587663,2126.7,2125.8,4.45937864]
[1772703722885,0.55463751,2126.5,2125.8,4.45937864]
[1772703723187,0.55463751,2126.5,2125.8,0.57506476]
[1772703723881,0.55463751,2126.6,2126.1,0.57506476]
[1772703724076,0.55463751,2126.6,2125.9,0.57506476]
[1772703724272,0.55463751,2126.6,2125.8,3.88431388]
[1772703724473,0.55463751,2126.6,2125.9,0.23645283]
[1772703726283,0.55463751,2126.4,2125.9,0.23645283]
[1772703727485,0.55463751,2126.4,2125.8,0.81151759]
[1772703728182,0.55463751,2126.4,2125.7,4.45937864]
[1772703728486,0.55463751,2126.4,2125.8,0.57506476]
[1772703729387,0.55463751,2126.6,2126.0,0.57506476]
[1772703731688,0.55463751,2126.6,2125.8,0.57506476]
[1772703732394,0.55463751,2126.6,2126.0,0.57506476]
[1772703734692,0.55463751,2126.6,2126.1,0.57506476]
[1772703739401,0.55463751,2126.6,2126.0,0.23512]
[1772703739698,0.55463751,2126.6,2126.0,0.8206629]
[1772703740100,0.55463751,2126.6,2126.1,0.5855429]
[1772703740695,0.55463751,2126.6,2126.0,0.23512]
[1772703740998,0.55463751,2126.6,2126.0,0.8206629]
[1772703741401,0.55463751,2126.6,2126.1,0.5855429]
[1772703742597,0.55130159,2126.6,2126.1,0.5855429]
[1772703743196,0.55130159,2126.6,2126.0,0.82199573]
[1772703743397,0.55130159,2126.6,2126.0,0.23645283]
[1772703744002,0.55130159,2126.5,2125.6,0.5855429]
[1772703746200,0.55130159,2126.5,2125.7,0.5855429]
[1772703747005,0.55543038,2126.7,2125.9,0.5855429]
[1772703747304,0.55543038,2126.7,2125.9,0.57933059]
[1772703748208,0.55543038,2126.7,2125.7,4.69964447]
[1772703748409,0.55543038,2126.7,2125.7,0.81533059]
[1772703748810,0.55543038,2126.7,2125.8,0.57933059]
[1772703752011,0.59010106,2126.6,2125.7,0.57933059]
[1772703755614,0.59010106,2126.4,2125.7,0.57933059]
[1772703757014,0.59010106,2126.4,2125.8,0.57933059]
[1772703759818,0.59010106,2126.4,2125.7,0.23515]
[1772703760020,0.59010106,2126.4,2125.8,0.57933059]
[1772703762123,6.80222985,2126.7,2125.8,0.57933059]
[1772703762319,0.59010106,2126.6,2126.0,0.57933059]
[1772703762513,0.00412879,2126.7,2126.2,0.57933059]
[1772703762918,0.59422985,2126.7,2126.2,0.57933059]
[1772703763229,0.59010106,2127.0,2126.2,0.57933059]
[1772703764123,0.59010106,2127.2,2126.4,0.57933059]
[1772703764323,0.00480462,2127.0,2126.4,0.57933059]
[1772703765118,0.59490568,2127.0,2126.4,0.57933059]
[1772703766020,0.59490568,2127.0,2126.3,0.23509]
[1772703766222,0.59490568,2127.0,2126.3,0.81442059]
[1772703766521,0.59490568,2127.0,2126.4,0.57933059]
[1772703767820,0.59010106,2127.2,2126.4,0.57933059]
[1772703768824,0.59584392,2127.2,2126.4,0.57933059]
[1772703769326,0.59584392,2127.2,2126.6,0.54001335]
[1772703769924,0.00574286,2127.2,2126.6,0.54001335]
[1772703770125,0.59248056,2127.2,2126.6,0.54001335]
[1772703771827,5.7495141,2127.9,2126.8,0.54001335]
[1772703772027,0.5867377,2127.7,2126.8,0.54001335]
[1772703772737,0.5867377,2128.2,2127.3,0.54001335]
[1772703773026,0.59040621,2128.2,2127.3,0.54432807]
[1772703773823,0.59040621,2128.2,2127.4,0.54001335]
[1772703774628,0.59040621,2128.2,2127.3,0.00431472]
[1772703774826,0.59040621,2128.2,2127.3,0.54432807]
[1772703775934,6.242,2128.1,2127.3,0.54432807]
[1772703776133,0.5867377,2128.0,2127.3,0.54432807]
[1772703776328,0.5867377,2128.0,2127.3,0.00431472]
[1772703776632,0.5867377,2127.8,2127.3,0.00431472]
[1772703777028,0.5867377,2127.8,2127.3,0.54432807]
[1772703778229,0.5867377,2127.8,2126.9,0.54001335]
[1772703778425,0.5867377,2127.8,2126.4,0.54001335]
[1772703779330,0.5867377,2127.8,2126.4,0.54520955]
[1772703780434,0.5867377,2127.6,2126.4,0.54520955]
[1772703780634,0.5867377,2127.5,2126.6,0.54001335]
[1772703792856,0.5867377,2127.5,2126.8,0.54001335]
[1772703793452,0.5867377,2127.5,2126.9,0.54001335]
[1772703794455,0.5867377,2127.5,2126.8,0.236]
[1772703794659,0.5867377,2127.5,2126.9,0.54001335]
[1772703796461,0.5867377,2127.5,2127.0,0.54001335]
[1772703796757,0.5867377,2127.5,2126.7,0.23504]
[1772703796758,0.5867377,2127.7,2127.2,0.54001335]
[1772703797259,0.5867377,2127.7,2126.9,1.59089543]
[1772703797559,0.5867377,2127.4,2126.8,0.54001335]
[1772703799362,0.5867377,2127.4,2126.5,0.53866607]
[1772703799663,0.5867377,2127.4,2126.6,0.53866607]
[1772703809758,0.5867377,2127.4,2126.4,4.42966728]
[1772703809960,0.56041629,2127.2,2126.4,0.5453534]
[1772703810263,0.56041629,2127.2,2126.5,0.5401572]
[1772703814270,0.56041629,2127.2,2126.4,0.0051962]
[1772703814476,0.56041629,2127.0,2126.2,0.5401572]
[1772703815372,0.56041629,2127.0,2126.2,0.54610549]
[1772703817579,0.56041629,2127.0,2126.3,0.5401572]
[1772703817783,0.56041629,2127.0,2126.2,0.24194829]
[1772703818672,0.56041629,2127.0,2126.3,0.5401572]
[1772703820477,0.56041629,2127.0,2126.4,0.5401572]
[1772703820681,0.56041629,2127.2,2126.6,0.5401572]
[1772703821581,5.50754557,2127.4,2127.0,0.5401572]
[1772703821582,0.56041629,2127.4,2127.0,0.5401572]
[1772703821882,0.56041629,2127.4,2126.7,0.5401572]
[1772703822479,0.56041629,2127.4,2126.9,0.5401572]
[1772703824081,0.56041629,2127.4,2126.7,0.5401572]
[1772703827687,0.56041629,2127.2,2126.5,0.5401572]
[1772703832791,0.57032306,2127.1,2126.5,0.5401572]
[1772703835094,0.57032306,2127.1,2126.4,0.5866959]
[1772703835293,0.57032306,2127.1,2126.3,0.5866959]
[1772703836495,0.57032306,2126.9,2126.2,0.00594829]
[1772703836998,0.57032306,2126.8,2126.2,0.00594829]
[1772703837798,0.57032306,2126.6,2125.7,0.60710014]
[1772703838000,6.92832306,2126.6,2125.7,0.60710014]
[1772703838198,0.57032306,2126.5,2125.7,0.60710014]
[1772703838800,0.5750319,2126.5,2125.7,0.56622879]
[1772703839894,0.5750319,2126.5,2125.7,0.56608881]
[1772703841694,0.57032306,2126.4,2125.7,0.56608881]
[1772703848404,0.57032306,2126.4,2125.7,0.57758707]
[1772703849401,1.59295595,2126.3,2125.7,0.00512865]
[1772703849604,0.57032306,2126.0,2125.4,0.56972186]
[1772703849808,0.57032306,2126.0,2125.1,0.57485051]
[1772703850002,0.57032306,2125.8,2125.1,0.57485051]
[1772703850500,0.57032306,2125.8,2125.1,0.57905187]
[1772703854701,0.57032306,2126.4,2125.1,0.57905187]
[1772703854907,0.57032306,2126.2,2125.3,0.57774956]
[1772703857213,0.57032306,2126.4,2125.5,0.58185645]
[1772703857412,0.57032306,2126.4,2125.7,0.5668249]
[1772703861813,0.57032306,2126.4,2125.8,0.23514]
[1772703862015,0.00470884,2126.5,2125.9,0.53526584]
[1772703862314,0.58111999,2126.9,2126.1,0.53526584]
[1772703863108,0.58687947,2126.9,2125.9,0.58178403]
[1772703865516,0.58111999,2126.8,2125.9,0.58178403]
[1772703866010,0.58111999,2126.8,2126.2,0.58178403]
[1772703874824,0.00575948,2126.9,2126.2,0.58178403]
[1772703875127,0.54989508,2126.9,2126.2,0.58178403]
[1772703876328,0.54989508,2126.9,2126.1,0.58275542]
[1772703877131,0.54989508,2126.9,2125.8,0.58275542]
[1772703881928,0.54989508,2126.9,2126.0,0.58275542]
[1772703882129,0.54989508,2126.9,2125.6,3.89990587]
[1772703882328,0.54989508,2126.9,2125.5,6.157]
[1772703882329,0.5441356,2126.7,2125.8,0.58275542]
[1772703882534,3.93303673,2126.8,2125.4,0.23518]
[1772703882535,0.5441356,2126.5,2125.6,0.58275542]
[1772703886941,0.5441356,2126.5,2125.8,0.58275542]
[1772703887140,7.0141356,2126.7,2125.8,0.58275542]
[1772703887336,0.5441356,2126.7,2125.8,0.58275542]
[1772703888339,0.5441356,2126.7,2125.9,0.58275542]
[1772703888942,0.55040882,2126.9,2126.1,0.56356186]
[1772703890739,0.00575948,2126.9,2126.1,0.56356186]
[1772703891145,0.55040882,2126.9,2126.1,0.56356186]
[1772703894443,0.54464934,2126.7,2126.1,0.56356186]
[1772703897842,0.00575948,2126.9,2126.1,0.56356186]
[1772703898146,7.05264934,2126.8,2126.1,0.56356186]
[1772703898344,0.54464934,2126.7,2126.3,0.56356186]
[1772703898547,0.54464934,2126.7,2126.2,0.79866186]
[1772703899448,0.54464934,2126.7,2126.2,0.56356186]
[1772703900448,0.55040882,2126.9,2126.2,0.56356186]
[1772703900751,0.55040882,2126.9,2126.2,4.46346773]
[1772703900752,0.00575948,2126.9,2126.2,4.46346773]
[1772703900944,0.55040882,2126.9,2126.3,0.56356186]
[1772703901140,0.55040882,2126.9,2126.0,3.89990587]
[1772703901348,0.55040882,2126.9,2126.1,0.56356186]
[1772703901745,0.00575948,2126.9,2126.2,4.46346773]
[1772703901945,0.00575948,2126.9,2126.4,0.56356186]
[1772703902146,0.54464934,2127.1,2126.4,0.56356186]
[1772703902350,0.54464934,2127.1,2126.5,0.56356186]
[1772703902650,0.54464934,2127.3,2126.7,0.56356186]
[1772703902845,0.54464934,2127.4,2126.7,0.56356186]
[1772703903039,0.54892154,2127.4,2126.7,0.5671257]
[1772703903745,0.54892154,2127.4,2126.7,0.00356384]
[1772703903944,0.54464934,2127.2,2126.7,0.00356384]
[1772703904650,0.54892154,2127.4,2126.7,0.5671257]
[1772703909456,0.0042722,2127.4,2126.7,0.5671257]
[1772703909856,0.54464934,2127.8,2126.9,0.56356186]
[1772703911060,0.548602,2127.8,2126.9,0.56356186]
[1772703912055,0.548602,2127.8,2126.7,0.5671257]
[1772703912356,0.548602,2127.8,2126.7,0.00356384]
[1772703912657,0.548602,2127.8,2126.7,0.5671257]
[1772703913458,0.548602,2127.8,2126.7,0.00356384]
[1772703913758,4.48163873,2127.8,2126.7,0.00356384]
[1772703913956,0.54464934,2127.7,2126.7,0.00356384]
[1772703914153,4.47768607,2127.7,2126.7,0.00356384]
[1772703914358,0.54464934,2127.6,2126.7,0.5671257]
[1772703914957,0.54464934,2127.4,2126.7,0.5671257]
[1772703918769,0.57589374,2127.2,2126.7,0.5671257]
[1772703920969,7.15189374,2127.4,2126.7,0.5671257]
[1772703921174,0.57589374,2127.3,2126.7,0.5671257]
[1772703921371,0.57589374,2127.6,2126.8,0.58300844]
[1772703921667,0.57589374,2127.6,2126.7,0.00356384]
[1772703921867,3.20178767,2127.6,2126.7,0.00356384]
[1772703922068,0.57589374,2127.5,2126.7,0.00356384]
[1772703922668,0.57589374,2127.3,2126.7,0.58657228]
[1772703923970,0.57589374,2127.2,2126.7,0.58657228]
[1772703924769,0.57589374,2127.4,2126.7,0.58657228]
[1772703925763,6.588,2127.6,2126.7,0.58657228]
[1772703925966,0.57589374,2127.5,2126.7,0.58657228]
[1772703926165,0.57589374,2127.5,2126.9,0.58300844]
[1772703926371,0.57589374,2127.7,2126.9,0.58300844]
[1772703926572,0.57589374,2127.7,2127.0,0.58300844]
[1772703927164,0.5798464,2127.8,2127.2,0.58300844]
[1772703927369,0.00395266,2127.8,2127.2,0.58300844]
[1772703927675,0.57790174,2128.1,2127.6,0.56794769]
[1772703928370,0.57790174,2128.3,2127.6,0.56794769]
[1772703928572,0.58270767,2128.3,2127.6,0.56794769]
[1772703933373,0.57790174,2128.2,2127.6,0.56794769]
[1772703936475,0.01575588,2128.2,2127.6,0.56794769]
[1772703937377,0.01575588,2128.2,2127.3,0.56794769]
[1772703939774,0.57790174,2128.1,2127.3,0.56794769]
[1772703940377,0.58270767,2128.3,2127.5,0.56794769]
[1772703941580,0.58270767,2128.3,2127.1,0.56794769]
[1772703944380,0.57790174,2128.0,2127.1,0.56794769]
[1772703944581,0.57790174,2127.8,2127.1,0.56794769]
[1772703946079,7.22490174,2127.9,2127.1,0.56794769]
[1772703946979,0.57790174,2127.8,2127.1,0.56794769]
[1772703947577,0.57790174,2127.8,2126.4,0.59734228]
[1772703947578,2.62365376,2127.4,2126.4,0.59734228]
[1772703947883,6.652,2127.4,2126.4,0.59734228]
[1772703948181,3.93303673,2127.6,2126.4,0.59734228]
[1772703948370,6.653,2127.5,2126.4,0.59734228]
[1772703948578,6.653,2127.5,2126.4,0.60225923]
[1772703949275,6.653,2127.5,2126.4,0.60582307]
[1772703950479,6.653,2127.5,2126.6,0.59878501]